bitfinex/quotes_ETHUSD_20220311
["timestamp","ask_amount","ask_price","bid_price","bid_amount"]
[1647018918311,1.86325065,2555.1,2555.0,1.26393702]
[1647018919314,0.50922071,2555.1,2555.0,1.26393702]
[1647018919912,1.64423459,2555.1,2555.0,1.26393702]
[1647018920113,2.76368877,2555.1,2555.0,1.26393702]
[1647018922865,2.71546806,2555.1,2555.0,1.26393702]
[1647018923671,6.26525604,2555.1,2555.0,1.26393702]
[1647018924902,6.27525604,2555.1,2555.0,1.26393702]
[1647018925204,6.26525604,2555.1,2555.0,1.26393702]
[1647018925409,2.76525604,2555.1,2555.0,1.26393702]
[1647018925809,7.27525604,2555.1,2555.0,1.26393702]
[1647018926011,7.26525604,2555.1,2555.0,1.26393702]
[1647018926214,19.13546806,2555.1,2555.0,1.26393702]
[1647018926614,34.79066806,2555.1,2555.0,1.26393702]
[1647018927512,22.88066806,2555.1,2555.0,1.26393702]
[1647018928153,34.79066806,2555.1,2555.0,1.26393702]
[1647018928354,22.88066806,2555.1,2555.0,1.26393702]
[1647018928555,34.79066806,2555.1,2555.0,1.26393702]
[1647018929855,22.88066806,2555.1,2555.0,1.26393702]
[1647018930455,34.79066806,2555.1,2555.0,1.26393702]
[1647018931059,19.38066806,2555.1,2555.0,1.26393702]
[1647018931265,18.38066806,2555.1,2555.0,1.26393702]
[1647018931662,18.37066806,2555.1,2555.0,1.26393702]
[1647018932141,30.28066806,2555.1,2555.0,1.26393702]
[1647018932340,30.28066806,2555.1,2554.5,0.00096]
[1647018932341,6.5,2555.0,2554.5,0.00096]
[1647018932542,31.28066806,2555.1,2554.3,0.25096]
[1647018932543,12.88908,2554.8,2554.3,0.25096]
[1647018932842,12.88908,2554.8,2554.1,0.00096]
[1647018932843,0.98812703,2554.4,2554.1,0.00096]
[1647018933140,0.98812703,2554.4,2553.8,0.08516615]
[1647018933343,0.98812703,2554.4,2554.0,1.95823]
[1647018933541,1.44013,2554.3,2554.0,1.95823]
[1647018933950,4.94013,2554.3,2553.8,1.0610372]
[1647018934145,4.94013,2554.3,2553.8,0.00323787]
[1647018934346,5.94013,2554.3,2553.8,0.00323787]
[1647018935045,5.94013,2554.3,2553.6,1.06755699]
[1647018935046,0.82499153,2553.9,2553.6,1.06755699]
[1647018935247,0.97935,2553.8,2553.6,1.06659699]
[1647018935666,0.97935,2553.8,2553.6,0.97933]
[1647018936068,0.97935,2553.8,2553.4,1.95858]
[1647018936069,4.47935,2553.8,2553.4,1.95858]
[1647018936269,0.461,2553.7,2553.4,1.95858]
[1647018936471,0.97944,2553.6,2553.4,1.95858]
[1647018936669,3.5,2553.5,2553.3,0.97946]
[1647018936871,3.5,2553.5,2553.2,0.01295446]
[1647018936872,0.04694257,2553.4,2553.2,0.01295446]
[1647018937070,0.461,2553.3,2553.2,0.01295446]
[1647018937269,3.961,2553.3,2553.2,0.01295446]
[1647018937468,3.961,2553.3,2553.1,0.00470192]
[1647018937469,4.94055,2553.3,2553.1,0.00470192]
[1647018937669,5.94055,2553.3,2553.2,0.00324698]
[1647018937871,7.08306417,2553.3,2553.2,0.00324698]
[1647018938067,3.58306417,2553.3,2553.2,0.00324698]
[1647018938269,0.00145515,2553.1,2553.0,0.0077504]
[1647018938470,0.98115515,2553.1,2553.0,0.0077504]
[1647018938670,1.44215515,2553.1,2553.0,0.0077504]
[1647018940708,4.94215515,2553.1,2553.0,0.0077504]
[1647018941109,4.95215515,2553.1,2553.0,0.0077504]
[1647018941310,17.90178904,2553.1,2553.0,0.0077504]
[1647018941509,2.49178904,2553.1,2553.0,0.0077504]
[1647018941715,1.49178904,2553.1,2553.0,0.0077504]
[1647018942309,0.46245515,2553.1,2553.0,0.0077504]
[1647018942711,0.50496878,2553.1,2553.0,0.0077504]
[1647018943367,6.59004757,2553.1,2553.0,0.0077504]
[1647018943566,18.01403296,2553.1,2553.0,0.0077504]
[1647018943770,20.13348714,2553.1,2553.0,0.0077504]
[1647018943969,15.15890836,2553.1,2553.0,0.0077504]
[1647018944170,15.14890836,2553.1,2553.0,0.0077504]
[1647018944374,3.69990836,2553.1,2553.0,0.0077504]
[1647018944771,2.72051801,2553.1,2553.0,0.0077504]
[1647018946371,3.72051801,2553.1,2553.0,0.0077504]
[1647018946573,2.72051801,2553.1,2553.0,0.0077504]
[1647018946808,0.05891229,2552.9,2552.8,0.97969]
[1647018947016,0.05891229,2552.9,2552.6,0.005226]
[1647018947017,0.04682501,2552.8,2552.6,0.005226]
[1647018947213,0.461,2552.7,2552.6,0.005226]
[1647018948812,4.52671501,2552.8,2552.6,0.005226]
[1647018948813,5.10716919,2552.8,2552.6,0.005226]
[1647018949012,1.11945418,2552.7,2552.6,0.005226]
[1647018949616,4.61945418,2552.7,2552.6,0.00619596]
[1647018949814,5.61945418,2552.7,2552.6,0.00619596]
[1647018950014,13.44705418,2552.7,2552.6,0.00619596]
[1647018950418,13.44705418,2552.7,2551.5,3.38765244]
[1647018950419,1.92347245,2551.7,2551.5,3.38765244]
[1647018950660,1.92347245,2551.7,2551.5,0.47655244]
[1647018952060,3.16323245,2551.8,2551.5,0.47655244]
[1647018952264,3.16323245,2551.8,2551.5,0.51389671]
[1647018953760,3.16323245,2551.8,2551.5,0.41389671]
[1647018954169,1.11945418,2551.6,2551.5,0.41389671]
[1647018957213,1.11945418,2551.6,2551.5,0.03734427]
[1647018957417,4.61945418,2551.6,2551.5,0.03734427]
[1647018957616,4.61945418,2551.6,2551.5,4.427e-05]
[1647018957617,4.62547772,2551.6,2551.5,4.427e-05]
[1647018957913,11.91,2551.5,2551.4,0.0101051]
[1647018958170,11.91,2551.5,2551.4,0.01353658]
[1647018958171,15.9058,2551.5,2551.4,0.01353658]
[1647018958371,15.9058,2551.5,2549.8,1.30213398]
[1647018958372,6.0,2550.9,2549.8,1.30213398]
[1647018958574,6.0,2550.9,2550.2,0.376]
[1647018958575,11.5245219,2550.8,2550.2,0.376]
[1647018958774,7.82,2550.3,2549.2,0.06438446]
[1647018958981,1.96203,2550.0,2549.3,0.0235432]
[1647018959169,1.96203,2550.0,2549.3,0.04035806]
[1647018959170,23.5481176,2549.9,2549.3,0.04035806]
[1647018959370,23.5481176,2549.9,2549.1,0.0182449]
[1647018959371,9.78985,2549.8,2549.2,0.0152768]
[1647018959570,9.78985,2549.8,2549.1,0.0182449]
[1647018959571,0.99362424,2549.4,2549.1,0.0182449]
[1647018959771,8.2886,2549.3,2549.0,0.0136069]
[1647018959975,0.98116,2549.2,2549.0,0.0136069]
[1647018960173,3.40433,2549.2,2549.0,0.0136069]
[1647018960374,3.40433,2549.2,2548.1,0.05759027]
[1647018960375,3.24333,2549.2,2548.1,0.05759027]
[1647018960585,0.19393037,2549.1,2548.7,0.01402008]
[1647018960775,0.95057349,2548.8,2548.7,0.01402008]
[1647018960974,0.3,2548.9,2548.7,0.40432008]
[1647018961169,4.48092,2549.0,2548.7,2.008e-05]
[1647018961376,0.08011575,2548.6,2547.4,0.021458]
[1647018961574,0.08011575,2548.6,2546.7,0.00499463]
[1647018961575,3.0,2547.5,2546.7,0.00499463]
[1647018961818,6.5,2547.8,2546.3,0.4360451]
[1647018961819,6.08160097,2546.8,2546.3,0.4360451]
[1647018962020,0.01233175,2547.0,2546.4,0.33818973]
[1647018962021,0.07706728,2546.6,2546.4,0.33818973]
[1647018962415,1.1009,2546.8,2546.4,0.33818973]
[1647018962623,1.1315,2548.1,2546.4,0.33818973]
[1647018962624,0.461,2547.6,2546.5,6.5]
[1647018962813,3.92718,2548.4,2546.5,6.70681907]
[1647018962814,0.461,2548.0,2546.5,6.70681907]
[1647018963020,3.0,2548.8,2548.2,0.5]
[1647018963213,7.8276,2548.9,2548.2,0.5]
[1647018963413,7.8276,2548.7,2548.2,0.5]
[1647018963615,1.96268,2548.4,2548.2,0.5]
[1647018963815,0.98125,2548.6,2548.2,1.5]
[1647018964015,0.98125,2548.6,2548.2,0.5]
[1647018964215,0.98125,2548.6,2548.2,0.5113024]
[1647018964818,1.11945418,2548.4,2548.2,0.5113024]
[1647018965223,1.11945418,2548.4,2548.3,1.3]
[1647018965418,7.8276,2548.7,2548.4,6.0]
[1647018965419,0.00413124,2548.5,2548.4,6.0]
[1647018965666,0.00413124,2548.5,2548.3,1.49393037]
[1647018965865,0.00413124,2548.5,2548.3,0.49821046]
[1647018966067,0.00413124,2548.5,2548.4,0.19393037]
[1647018966268,0.00413124,2548.5,2548.4,0.20523277]
[1647018966664,0.00413124,2548.5,2548.4,0.40133277]
[1647018967069,0.00413124,2548.5,2548.4,0.20523277]
[1647018967267,0.00413124,2548.5,2548.4,0.3113024]
[1647018967567,7.8276,2548.7,2548.2,1.87111281]
[1647018967772,0.01949404,2549.1,2548.2,1.87111281]
[1647018967773,0.01949404,2549.1,2548.4,0.39003037]
[1647018967968,0.196,2550.0,2548.5,4.157]
[1647018968174,0.196,2550.3,2548.9,1.9606999]
[1647018968370,2.02397768,2551.0,2550.0,1.13676492]
[1647018968371,0.196,2550.8,2550.0,1.13676492]
[1647018968568,1.10354035,2550.9,2550.1,3.5]
[1647018968766,1.10354035,2550.9,2550.0,1.43676492]
[1647018968968,1.10354035,2550.9,2550.0,1.42885474]
[1647018969169,0.196,2550.8,2550.0,1.42885474]
[1647018969613,3.0,2550.8,2550.0,4.92885474]
[1647018969915,0.11144445,2551.1,2550.0,4.92885474]
[1647018969916,0.146,2550.7,2550.0,4.92885474]
[1647018970114,0.196,2551.0,2550.0,4.92981474]
[1647018970317,0.196,2551.0,2550.0,4.92885474]
[1647018970515,0.196,2551.0,2550.5,1.02731474]
[1647018970720,0.11144445,2551.1,2550.6,1.0]
[1647018971118,0.11144445,2551.1,2550.6,4.5]
[1647018971318,0.11144445,2551.1,2550.6,3.88993037]
[1647018971518,0.11144445,2551.1,2550.7,0.0795663]
[1647018971519,0.00529104,2550.9,2550.7,0.0795663]
[1647018972517,0.00942124,2550.9,2550.7,0.0795663]
[1647018972920,0.00942124,2550.9,2550.7,0.0295663]
[1647018973359,0.00942124,2550.9,2550.7,0.3295663]
[1647018973562,3.0,2551.8,2551.6,0.939968]
[1647018973762,0.97987,2552.3,2551.2,1.0]
[1647018973763,1.17567,2552.3,2551.2,1.0]
[1647018973965,1.17567,2552.3,2551.4,0.02754042]
[1647018973966,0.1958,2552.3,2551.4,0.02754042]
[1647018974172,7.34,2552.8,2551.6,0.979498]
[1647018974173,0.1958,2552.7,2551.6,0.979498]
[1647018974365,0.1958,2552.7,2551.8,0.06766668]
[1647018974765,3.0,2552.6,2551.8,0.06766668]
[1647018974965,1.03196476,2552.7,2551.9,0.07362849]
[1647018975164,0.00412961,2552.3,2551.9,0.07362849]
[1647018975766,0.00412961,2552.3,2552.0,0.06337538]
[1647018975966,3.0,2553.3,2552.0,0.06337538]
[1647018976166,3.0,2553.3,2552.1,0.07111605]
[1647018976469,0.00412964,2552.2,2552.1,1.12261144]
[1647018976666,0.00412964,2552.2,2552.1,0.37111605]
[1647018977121,3.05722212,2553.0,2552.1,0.07111605]
[1647018977319,0.00302663,2552.3,2552.0,0.00096]
[1647018977521,0.00302663,2552.3,2552.1,0.1958]
[1647018977719,0.00302663,2552.3,2552.2,1.0]
[1647018978124,0.00302663,2552.3,2552.2,1.3]
[1647018978319,0.05722212,2553.0,2552.2,1.0]
[1647018978519,0.3,2553.1,2552.0,0.06208773]
[1647018978520,0.00302663,2552.4,2552.0,0.06208773]
[1647018978722,0.00302663,2552.4,2552.0,0.06112773]
[1647018978919,2.90302663,2552.7,2551.6,0.00096]
[1647018979123,2.90302663,2552.4,2551.4,0.00096]
[1647018979522,0.06238661,2552.3,2551.4,0.00096]
[1647018979721,0.06238661,2552.3,2551.3,0.0514571]
[1647018979922,0.06238661,2552.3,2551.4,7.56285828]
[1647018980121,0.06238661,2552.3,2551.5,0.06010231]
[1647018980323,2.90302663,2551.9,2551.4,7.56285828]
[1647018981161,0.06923553,2551.8,2551.4,7.56285828]
[1647018981761,0.06923553,2551.8,2551.4,7.86285828]
[1647018982363,0.04876797,2551.8,2551.4,7.86285828]
[1647018982763,0.1958,2552.4,2551.4,7.86285828]
[1647018982764,0.3,2552.2,2551.4,7.86285828]
[1647018982962,0.06505065,2552.0,2551.4,7.86285828]
[1647018983163,2.90302663,2552.1,2551.4,0.3]
[1647018983367,2.90302663,2552.1,2551.3,1.11619721]
[1647018983368,0.05948494,2552.0,2551.3,1.41619721]
[1647018983765,0.3,2552.2,2551.5,0.9795975]
[1647018983964,0.3,2552.2,2551.4,2.01666824]
[1647018984165,2.90302663,2552.4,2551.4,2.01666824]
[1647018984418,0.06722905,2552.3,2551.7,0.85897377]
[1647018984618,0.01660206,2551.9,2551.7,0.3]
[1647018985024,0.01660206,2551.9,2551.4,0.05771824]
[1647018985925,0.01660206,2551.9,2551.4,0.063128]
[1647018987221,0.01660206,2551.9,2551.8,0.92653003]
[1647018987922,0.25785799,2553.1,2552.2,0.8971516]
[1647018988159,0.25785799,2553.1,2552.2,0.97932]
[1647018988361,0.00406257,2552.5,2552.2,0.97932]
[1647018988566,0.00406257,2552.5,2552.2,1.27932]
[1647018989160,0.00406257,2552.5,2552.3,0.99487995]
[1647018989360,0.00796074,2552.5,2552.4,4.4792578]
[1647018989563,0.00389817,2552.5,2552.4,16.6892578]
[1647018989760,0.00389817,2552.5,2552.4,16.88318817]
[1647018990562,9.817e-05,2552.5,2552.4,16.98016154]
[1647018990765,0.07104325,2553.9,2553.3,0.9789463]
[1647018990965,0.1958,2553.8,2553.4,3.5]
[1647018991172,0.06532572,2554.3,2553.2,3.50096]
[1647018991372,0.06532572,2554.3,2553.5,1.0]
[1647018991373,0.07047541,2554.3,2553.5,1.0]
[1647018991565,0.07047541,2554.3,2553.7,0.95558383]
[1647018992027,0.07047541,2554.3,2553.7,1.25558383]
[1647018992228,0.07047541,2554.3,2553.7,2.23430383]
[1647018992430,0.06453315,2554.7,2553.8,15.40610178]
[1647018992628,0.1957,2555.0,2554.0,1.9571541]
[1647018992829,1.60490257,2554.9,2554.4,1.11573434]
[1647018993032,0.07001034,2554.8,2554.4,1.11573434]
[1647018993230,0.07001034,2554.8,2554.4,1.41573434]
[1647018993433,0.06030445,2555.0,2554.4,0.3]
[1647018993736,0.07181125,2554.5,2554.2,0.00096]
[1647018993931,0.07181125,2554.5,2554.0,0.00096]
[1647018994130,8.0233,2555.1,2553.9,0.9787322]
[1647018994131,0.07465178,2554.9,2553.9,0.9787322]
[1647018994330,0.00380826,2554.8,2553.9,0.3]
[1647018994531,0.00380826,2554.8,2554.4,1.02075039]
[1647018994731,0.00380826,2554.8,2554.4,0.3]
[1647018995132,0.07465178,2554.9,2554.4,0.3]
[1647018995332,0.07465178,2554.9,2554.0,0.00096]
[1647018995555,0.0038083,2554.7,2554.0,11.91]
[1647018995760,0.0038083,2554.7,2554.1,2.0215809]
[1647018995959,0.06551918,2554.6,2553.9,0.3]
[1647018996162,0.06551918,2554.6,2553.8,2.2574252]
[1647018996664,0.06551918,2554.6,2553.9,0.9787613]
[1647018996862,2.90695161,2554.5,2553.9,0.9787613]
[1647018997064,0.06357705,2554.4,2554.0,0.97871]
[1647018997463,2.96660368,2554.4,2553.8,0.3]
[1647018997664,0.072536,2554.3,2553.8,10.10091632]
[1647018997863,0.072536,2554.3,2553.9,9.12208212]
[1647018998164,0.07646105,2554.3,2553.9,10.40084212]
[1647018998364,0.07646105,2554.3,2554.0,10.22495662]
[1647018998365,0.00392505,2554.3,2554.0,10.22495662]
[1647018998575,0.00392505,2554.3,2554.1,9.36700203]
[1647018998767,0.00392505,2554.3,2554.1,9.66700203]
[1647018998971,0.06921392,2554.6,2554.2,8.11059396]
[1647018999611,2.85695168,2554.3,2554.2,8.11059396]
[1647018999811,2.85695168,2554.3,2554.2,8.13090297]
[1647019000214,2.85695168,2554.3,2554.2,0.02030901]
[1647019001018,0.0703139,2554.5,2554.2,0.02030901]
[1647019001216,0.06245919,2555.0,2554.2,0.02030901]
[1647019001620,0.00288805,2554.4,2554.2,0.99876371]
[1647019001816,0.00288805,2554.4,2554.3,0.3]
[1647019002019,0.00288805,2554.4,2554.3,1.39879408]
[1647019002418,0.06245919,2555.0,2554.3,1.39879408]
[1647019002818,0.0028881,2554.5,2554.4,0.9784267]
[1647019003067,0.0028881,2554.5,2554.4,1.2784267]
[1647019003661,0.06245919,2555.0,2554.8,0.97844]
[1647019003865,0.06245919,2555.0,2554.6,1.9568734]
[1647019004167,0.06346268,2554.9,2554.3,3.35568408]
[1647019004464,7.84288311,2555.1,2554.3,3.35568408]
[1647019004465,0.06590024,2554.7,2554.3,1.95689]
[1647019004660,0.06590024,2554.7,2554.2,0.02030901]
[1647019004861,0.06590024,2554.7,2554.2,1.97750461]
[1647019005162,0.06972175,2554.7,2554.2,1.97750461]
[1647019005561,0.06972175,2554.7,2554.2,0.02030901]
[1647019005963,0.06590024,2554.7,2554.2,0.02030901]
[1647019006162,2.85695168,2554.4,2554.2,0.02030901]
[1647019006362,0.06716379,2554.3,2554.2,0.02030901]
[1647019007317,0.3,2554.5,2554.2,0.02030901]
[1647019007518,4.81446168,2554.8,2554.2,0.02030901]
[1647019007519,0.06393765,2554.3,2554.2,0.02030901]
[1647019007718,0.00410973,2554.4,2554.2,0.02030901]
[1647019008320,0.06543661,2554.9,2554.2,0.02030901]
[1647019008723,2.86094952,2554.4,2554.2,0.99893901]
[1647019009023,0.07592742,2554.3,2554.2,0.99893901]
[1647019009221,0.07592742,2554.3,2554.2,0.02030901]
[1647019009422,2.86094952,2554.4,2554.2,0.02030901]
[1647019009423,0.06399354,2554.4,2554.2,0.02030901]
[1647019009619,0.06399354,2554.4,2554.1,1.29448196]
[1647019009620,0.9928748,2554.4,2554.1,1.00654488]
[1647019009819,0.05159016,2554.3,2554.1,1.00654488]
[1647019010029,0.05159016,2554.3,2554.1,1.98523488]
[1647019010219,0.00399778,2554.4,2554.1,1.98523488]
[1647019010869,0.06022088,2554.3,2554.1,1.98523488]
[1647019011063,0.06022088,2554.3,2554.1,0.02786808]
[1647019011266,0.9328791,2554.2,2554.1,0.02786808]
[1647019013764,0.06022088,2554.3,2554.1,0.02786808]
[1647019013765,0.99309998,2554.3,2554.1,0.02786808]
[1647019013964,0.05306519,2554.2,2554.1,0.02786808]
[1647019014615,0.05306519,2554.2,2553.9,1.90133124]
[1647019015413,0.05306519,2554.2,2554.0,0.97873]
[1647019016013,1.26439584,2554.5,2554.1,0.86138645]
[1647019016214,1.03058474,2554.6,2554.1,1.16138645]
[1647019016416,0.05191474,2554.6,2554.4,0.9786254]
[1647019016620,1.03058474,2554.6,2554.4,0.9786254]
[1647019016817,1.96346384,2554.6,2554.4,0.9786254]
[1647019017018,0.97867,2554.6,2554.2,0.97866]
[1647019017221,14.65480118,2555.0,2554.2,0.97866]
[1647019017416,0.9328791,2554.8,2554.2,0.97866]
[1647019017616,0.05324518,2554.7,2554.2,0.97866]
[1647019017817,0.05324518,2554.7,2554.4,0.97866]
[1647019018561,0.00301238,2554.6,2554.2,0.24568916]
[1647019018958,0.00301238,2554.6,2554.2,2.20300406]
[1647019018959,1.91462148,2554.6,2554.2,2.20300406]
[1647019019159,1.27866,2554.8,2554.3,0.3]
[1647019019160,1.24652666,2554.8,2554.3,0.3]
[1647019019359,1.90467036,2554.7,2554.3,0.3]
[1647019019560,0.00413182,2554.5,2554.3,0.3]
[1647019020562,3.50413182,2554.5,2554.1,0.02328169]
[1647019020764,3.5,2554.5,2554.1,0.02328169]
[1647019021359,2.302288,2554.6,2554.1,0.02328169]
[1647019021360,5.802288,2554.6,2554.1,0.02328169]
[1647019021562,2.302288,2554.6,2554.1,0.02328169]
[1647019021823,2.002288,2554.6,2554.1,0.02328169]
[1647019022008,1.60476028,2554.5,2554.1,0.02328169]
[1647019022215,0.97879,2554.5,2554.1,1.00205689]
[1647019022416,0.97879,2554.5,2554.1,0.02328169]
[1647019022613,0.97879,2554.5,2554.2,0.0818067]
[1647019022815,0.97879,2554.5,2554.2,1.16871355]
[1647019023214,0.97879,2554.5,2554.2,1.46871355]
[1647019023413,0.97879,2554.5,2554.2,0.3818067]
[1647019023614,0.97879,2554.5,2554.2,0.0818067]
[1647019024016,0.0208092,2554.5,2554.3,0.02115676]
[1647019024314,0.0208092,2554.5,2554.3,2.83604176]
[1647019024515,0.0208092,2554.5,2554.4,0.37003819]
[1647019024719,10.18024057,2554.7,2554.4,0.37003819]
[1647019025313,10.17611118,2554.7,2554.4,0.37003819]
[1647019025567,0.00412963,2554.7,2554.6,18.41]
[1647019025770,0.00412963,2554.7,2554.6,18.71]
[1647019025972,7.8276,2555.1,2554.7,19.53678655]
[1647019026172,0.01651531,2555.2,2554.9,0.06968106]
[1647019026375,7.34,2555.6,2555.3,0.98695159]
[1647019026376,6.75744079,2555.6,2555.3,0.98695159]
[1647019026575,1.1749,2556.3,2555.6,0.97807]
[1647019026576,1.3704,2556.3,2555.6,0.97807]
[1647019026776,1.60376668,2556.2,2555.8,0.08470082]
[1647019027073,1.0,2556.4,2555.8,0.08470082]
[1647019027274,2.29708857,2557.2,2556.0,11.91]
[1647019027476,0.95157086,2557.5,2556.7,11.91]
[1647019027477,0.43268424,2557.5,2556.7,11.91]
[1647019027672,0.43268424,2557.5,2556.6,1.02363124]
[1647019027673,0.3915,2557.8,2557.4,0.97746]
[1647019027875,1.79845991,2557.7,2557.4,0.97746]
[1647019028074,1.60305991,2557.6,2557.4,0.97746]
[1647019028474,0.04661072,2557.5,2557.4,1.06175032]
[1647019028773,0.04661072,2557.5,2557.4,1.36175032]
[1647019029173,0.04661072,2557.5,2557.4,1.27746]
[1647019029737,0.04661072,2557.5,2557.4,4.77746]
[1647019030144,0.04661072,2557.5,2557.4,5.77746]
[1647019030745,0.04661072,2557.5,2557.4,2.27746]
[1647019030943,0.00074242,2557.6,2557.4,2.27746]
[1647019031144,0.00074242,2557.6,2557.4,1.27746]
[1647019031450,0.05,2558.2,2557.7,0.9772951]
[1647019031845,0.05,2558.2,2557.8,0.3]
[1647019032245,0.05,2558.2,2557.7,17.6872951]
[1647019032444,0.05,2558.2,2557.8,0.91293182]
[1647019032651,0.05,2558.2,2558.0,0.97708]
[1647019032849,0.00413146,2558.1,2558.0,1.27708]
[1647019033059,0.00413146,2558.1,2558.0,16.68708]
[1647019033257,0.00413146,2558.1,2558.0,17.68708]
[1647019033458,0.05,2558.2,2558.1,18.41]
[1647019033459,0.00423146,2558.2,2558.1,18.41]
[1647019033863,0.00423146,2558.2,2558.1,19.41]
[1647019034059,6.289e-05,2558.2,2558.1,12.91]
[1647019034265,0.0174856,2559.0,2558.3,11.91]
[1647019034465,0.0174856,2559.0,2558.5,11.91]
[1647019034667,0.0174856,2559.0,2558.6,16.38665]
[1647019034865,0.0174856,2559.0,2558.6,12.88665]
[1647019035171,0.0174856,2559.0,2558.6,1.3]
[1647019035366,0.0174856,2559.0,2558.5,1.11384433]
[1647019035565,0.0174856,2559.0,2558.5,0.3]
[1647019035765,0.0710969,2559.0,2557.9,4.5]
[1647019035967,0.2663969,2559.0,2557.9,3.8]
[1647019036365,0.2663969,2559.0,2557.9,0.3]
[1647019036812,0.97716,2558.9,2557.7,4.05]
[1647019037015,1.07712278,2558.6,2557.6,1.95428]
[1647019037316,1.07712278,2558.6,2557.4,0.79446715]
[1647019037317,0.0465682,2558.5,2557.4,0.02212746]
[1647019037514,0.1953,2558.4,2557.4,0.02212746]
[1647019037718,1.17266,2558.4,2558.2,0.00387556]
[1647019038114,1.95485,2558.3,2558.2,0.00387556]
[1647019038314,2.25485,2558.3,2558.2,0.00387556]
[1647019038516,0.05424444,2557.3,2556.6,3.5]
[1647019038719,0.05424444,2557.3,2556.4,3.9089141]
[1647019038917,0.05424444,2557.3,2556.5,3.5]
[1647019039118,0.05424444,2557.3,2556.5,15.41]
[1647019039419,0.05424444,2557.3,2557.2,0.07305448]
[1647019040418,0.05424444,2557.3,2556.9,0.3]
[1647019040663,0.05424444,2557.3,2556.9,0.38410821]
[1647019040866,0.05424444,2557.3,2556.9,0.08410821]
[1647019041263,0.05424444,2557.3,2557.0,0.00386768]
[1647019041864,0.05210751,2557.3,2557.0,0.00386768]
[1647019042271,0.30743751,2557.5,2557.0,0.00386768]
[1647019042469,0.30743751,2557.5,2557.0,0.00377494]
[1647019042871,0.00743751,2557.5,2557.2,0.95455535]
[1647019043167,0.3,2557.6,2557.2,2.23198535]
[1647019043366,1.95488,2558.0,2557.3,0.07201745]
[1647019043567,0.3,2557.7,2557.3,0.07201745]
[1647019043764,2.25488,2558.0,2557.3,0.07201745]
[1647019044067,2.25488,2558.0,2557.7,0.96356817]
[1647019044068,0.3,2558.0,2557.7,0.96356817]
[1647019044315,0.97731,2558.1,2557.7,1.26356817]
[1647019046021,0.97731,2558.1,2557.8,0.00349878]
[1647019046722,1.95506,2558.0,2557.8,0.00349878]
[1647019046922,1.95506,2558.0,2557.1,0.0311043]
[1647019047126,1.17261,2558.1,2557.1,0.0311043]
[1647019047127,0.97766,2557.4,2557.1,0.0311043]
[1647019047524,1.27766,2557.4,2557.2,0.81321661]
[1647019047923,1.27766,2557.4,2557.2,1.11321661]
[1647019048165,1.27766,2557.4,2557.2,9.47007507]
[1647019048362,1.27766,2557.4,2557.2,10.47388649]
[1647019049168,6.56011822,2557.3,2555.8,4.30133]
[1647019049364,6.56011822,2557.3,2555.8,0.3915]
[1647019049365,0.01252532,2556.5,2555.8,0.3915]
[1647019049564,0.6565,2556.4,2555.8,0.3915]
[1647019049765,3.0,2556.2,2555.8,0.3915]
[1647019049964,3.0,2556.2,2555.0,2.0]
[1647019049965,5.16273534,2556.1,2555.0,2.0]
[1647019050168,6.5,2555.3,2554.2,0.00096]
[1647019050367,3.55535185,2555.2,2554.2,0.00096]
[1647019050572,0.05480353,2555.1,2553.9,0.00096]
[1647019050773,0.461,2555.0,2553.9,0.00096]
[1647019050970,0.04621288,2554.9,2553.8,1.0]
[1647019051167,0.04621288,2554.9,2554.3,0.95367697]
[1647019051168,0.50721288,2554.9,2554.3,0.95367697]
[1647019051368,0.50721288,2554.9,2553.9,0.00096]
[1647019051369,0.04838568,2554.8,2553.9,0.00096]
[1647019051569,0.04838568,2554.8,2553.7,0.07462753]
[1647019052016,0.04838568,2554.8,2554.5,0.00104484]
[1647019052822,0.04838568,2554.8,2554.4,1.21890789]
[1647019053221,0.04838568,2554.8,2554.5,0.0034732]
[1647019054221,0.04838568,2554.8,2554.4,1.21890789]
[1647019054625,0.04838568,2554.8,2554.5,0.0034732]
[1647019055025,0.01724738,2555.1,2554.5,0.06890729]
[1647019055423,0.01724738,2555.1,2554.9,1.95642]
[1647019055666,0.01724738,2555.1,2554.9,3.12441253]
[1647019055871,0.01724738,2555.1,2554.9,4.42441253]
[1647019056269,0.01724738,2555.1,2554.9,5.40264373]
[1647019056970,0.01724738,2555.1,2554.9,1.3]
[1647019057170,0.01724738,2555.1,2554.9,0.3]
[1647019057372,0.01724738,2555.1,2554.3,4.9149398]
[1647019057568,0.01724738,2555.1,2554.3,4.2139798]
[1647019057768,0.01724738,2555.1,2554.3,5.2139798]
[1647019057969,0.01724738,2555.1,2554.3,4.18420642]
[1647019058169,0.01724738,2555.1,2554.1,0.06961975]
[1647019058170,0.0762643,2555.1,2554.1,0.06961975]
[1647019058575,0.04888966,2555.0,2554.1,1.11399122]
[1647019059074,0.04622671,2554.9,2554.1,1.11399122]
[1647019059325,0.04622671,2554.9,2554.5,0.00388316]
[1647019059624,5.65266,2555.2,2554.5,0.00388316]
[1647019059625,0.01564482,2555.0,2554.6,0.9785079]
[1647019059825,0.01564482,2555.0,2554.7,0.3]
[1647019060425,0.01564482,2555.0,2554.4,0.06868248]
[1647019060628,0.01564482,2555.0,2554.7,0.00388286]
[1647019061327,0.01564482,2555.0,2554.6,0.3]
[1647019061726,0.01564482,2555.0,2554.8,0.3]
[1647019062129,0.01564482,2555.0,2554.7,0.30388278]
[1647019062328,0.01564482,2555.0,2554.7,0.00388278]
[1647019062530,0.01829052,2555.1,2554.7,0.00388278]
[1647019062731,0.01829052,2555.1,2554.7,0.30388278]
[1647019062931,0.01829052,2555.1,2554.7,0.0011697]
[1647019063163,3.51829052,2555.1,2554.7,0.0011697]
[1647019063366,3.5,2555.1,2554.7,0.0011697]
[1647019063564,0.05023334,2555.0,2554.7,0.0011697]
[1647019063766,0.05023334,2555.0,2553.9,0.06999598]
[1647019064162,0.05023334,2555.0,2554.8,0.00103864]
[1647019064563,0.0148823,2554.9,2554.8,0.00103864]
[1647019064964,0.0148823,2554.9,2554.7,2.18127787]
[1647019065563,0.0148823,2554.9,2554.8,0.00103864]
[1647019065767,0.0148823,2554.9,2554.8,0.08812806]
[1647019065969,1.0,2556.1,2555.6,0.9780888]
[1647019066272,1.0,2556.1,2555.6,0.3]
[1647019066915,1.02082252,2556.3,2555.8,0.94669995]
[1647019067319,1.02082252,2556.3,2555.8,1.24669995]
[1647019067520,1.41075751,2555.6,2555.5,1.9561776]
[1647019067720,1.41075751,2555.6,2555.0,1.07339746]